fUST/lending_fUST_20240501
["ID","MTS","AMOUNT","RATE_DAILY","PERIOD"]
[324991735,1714499246786,-500.0,0.0003178,2]
[324991736,1714499246808,-169.8,0.0003178,2]
[324991737,1714499246827,-500.0,0.0003178,2]
[324991738,1714499246848,-500.0,0.0003178,2]
[324991739,1714499246868,-500.0,0.0003178,2]
[324991740,1714499246889,-500.0,0.0003178,2]
[324991741,1714499246908,-500.0,0.0003178,2]
[324991742,1714499246929,-500.0,0.0003178,2]
[324991743,1714499246955,-500.0,0.0003178,2]
[324991744,1714499246978,-1304.13,0.0003178,2]
[324991745,1714499247005,-541.93212074,0.0003178,2]
[324991746,1714499247025,-500.0,0.0003178,2]
[324991747,1714499247046,-702.01,0.0003178,2]
[324991748,1714499247066,-500.0,0.0003178,30]
[324991749,1714499247086,-500.0,0.0003178,2]
[324991750,1714499247108,-500.0,0.0003178,2]
[324991751,1714499247128,-500.0,0.0003178,2]
[324991752,1714499247148,-500.0,0.0003178,2]
[324991753,1714499247170,-341.32989977,0.0003178,2]
[324991773,1714499345245,-7501.56052454,0.0002,2]
[324991774,1714499345266,-611.59235525,0.00022808,2]
[324991775,1714499345287,-166.666666,0.00025979,2]
[324991776,1714499345307,-611.59235525,0.00026129,3]
[324991777,1714499345330,-277.79333084,0.00029,3]
[324991778,1714499345354,-611.59235525,0.00029449,4]
[324991779,1714499346920,942.6785004,0.00026947,2]
[324991781,1714499387732,18011.91907795,0.00026947,2]
[324991850,1714499432126,-1188.50416361,0.00026947,2]
[324991851,1714499432138,-154.76784823,0.00026947,2]
[324991852,1714499432147,-1564.25196696,0.00026947,2]
[324991853,1714499432157,-756.81853789,0.00026947,2]
[324991854,1714499432166,-20397.9,0.00031233,3]
[324991855,1714499432175,-1330.0170423,0.00031234,4]
[324991856,1714499432184,-324.75862683,0.00031235,4]
[324991857,1714499432193,-3722.55253328,0.00031235,4]
[324991858,1714499432203,-931.70787666,0.00031236,4]
[324991859,1714499432212,-88423.0613898,0.00031236,4]
[324991869,1714499439182,-12600.02064678,0.00031232,4]
[324991870,1714499439192,-2168.76013735,0.00031236,4]
[324991871,1714499439202,-16998.25,0.00031237,3]
[324991872,1714499439212,-7337.08425748,0.00031243,4]
[324991873,1714499439222,-1751.631749,0.00031243,2]
[324991874,1714499439231,-443.36991416,0.00031244,4]
[324991875,1714499439241,-959.5404316,0.00031244,2]
[324991876,1714499439250,-296.84283227,0.00031244,4]
[324991877,1714499439259,-691.00662117,0.00031245,4]
[324991878,1714499439269,-811.3128967,0.00031245,4]
[324991879,1714499439278,-213.92293244,0.00031246,4]
[324991880,1714499439288,-79564.59046802,0.00031247,4]
[324991881,1714499439297,-212.22553252,0.00031777,4]
[324991882,1714499439307,-520.3609854,0.00031778,4]
[324991883,1714499439316,-158.67010023,0.0003178,2]
[324991884,1714499439326,-340.37131133,0.0003178,2]
[324991885,1714499439335,-510.76687985,0.0003178,2]
[324991886,1714499439344,-500.0,0.0003178,2]
[324991887,1714499439353,-500.0,0.0003178,2]
[324991888,1714499439363,-500.0,0.0003178,2]
[324991889,1714499439372,-515.86957868,0.0003178,2]
[324991890,1714499439382,-601.0651819,0.0003178,2]
[324991891,1714499439394,-500.0,0.0003178,2]
[324991892,1714499439403,-500.0,0.0003178,2]
[324991893,1714499439413,-500.0,0.0003178,2]
[324991894,1714499439423,-168.64781487,0.0003178,2]
[324991895,1714499439433,-516.82043218,0.0003178,2]
[324991896,1714499439442,-500.0,0.0003178,2]
[324991897,1714499439452,-500.0,0.0003178,2]
[324991898,1714499439461,-500.0,0.0003178,2]
[324991899,1714499439472,-501.24596674,0.0003178,2]
[324991900,1714499439484,-560.28,0.0003178,2]
[324991901,1714499439494,-1000.0,0.0003178,2]
[324991902,1714499439503,-500.0,0.0003178,2]
[324991903,1714499439513,-2394.56,0.0003178,2]
[324991904,1714499439523,-500.0,0.0003178,2]
[324991905,1714499439533,-500.0,0.0003178,2]
[324991906,1714499439543,-528.42534051,0.0003178,2]
[324991907,1714499439552,-500.0,0.0003178,2]
[324991908,1714499439564,-500.0,0.0003178,2]
[324991909,1714499439574,-500.0,0.0003178,2]
[324991910,1714499439583,-628.8198716,0.0003178,2]
[324991911,1714499439593,-500.0,0.0003178,2]
[324991912,1714499439602,-794.19,0.0003178,2]
[324991913,1714499439611,-659.6,0.0003178,2]
[324991914,1714499439621,-500.0,0.0003178,2]
[324991915,1714499439630,-500.0,0.0003178,2]
[324991916,1714499439642,-577.7,0.0003178,2]
[324991917,1714499439651,-152.65,0.0003178,2]
[324991918,1714499439661,-500.0,0.0003178,2]
[324991919,1714499439671,-513.33959173,0.0003178,2]
[324991920,1714499439681,-500.0,0.0003178,2]
[324991921,1714499439690,-799.86,0.0003178,2]
[324991922,1714499439700,-500.0,0.0003178,2]
[324991923,1714499439709,-500.0,0.0003178,2]
[324991924,1714499439718,-916.77,0.0003178,2]
[324991925,1714499439728,-500.89672697,0.0003178,2]
[324991926,1714499439737,-598.01,0.0003178,2]
[324991927,1714499439747,-500.0,0.0003178,2]
[324991928,1714499439756,-300.0,0.0003178,2]
[324991929,1714499439767,-500.0,0.0003178,2]
[324991930,1714499439776,-500.0,0.0003178,2]
[324991931,1714499439785,-500.0,0.0003178,2]
[324991932,1714499439795,-500.0,0.0003178,2]
[324991933,1714499439804,-609.48,0.0003178,2]
[324991934,1714499439814,-500.0,0.0003178,2]
[324991935,1714499439824,-607.06,0.0003178,2]
[324991936,1714499439834,-500.0,0.0003178,2]
[324991937,1714499439843,-500.0,0.0003178,2]
[324991938,1714499439852,-500.0,0.0003178,2]
[324991939,1714499439862,-500.0,0.0003178,2]
[324991940,1714499439871,-500.0,0.0003178,2]
[324991941,1714499439880,-340.01326738,0.0003178,2]
[324991942,1714499439891,-500.0,0.0003178,2]
[324991943,1714499439901,-500.0,0.0003178,2]
[324991944,1714499439911,-500.0,0.0003178,2]
[324991945,1714499439921,-500.0,0.0003178,2]
[324991946,1714499439932,-500.0,0.0003178,2]
[324991947,1714499439942,-500.0,0.0003178,2]
[324991948,1714499439951,-500.0,0.0003178,2]
[324991949,1714499439961,-500.0,0.0003178,2]
[324991950,1714499439970,-2344.77,0.0003178,2]
[324991951,1714499439979,-500.0,0.0003178,2]
[324991952,1714499439988,-500.0,0.0003178,2]
[324991953,1714499439998,-500.0,0.0003178,2]
[324991954,1714499440007,-500.0,0.0003178,2]
[324991955,1714499440018,-500.0,0.0003178,2]
[324991956,1714499440028,-500.0,0.0003178,2]
[324991957,1714499440039,-506.75,0.0003178,2]
[324991958,1714499440050,-500.0,0.0003178,2]
[324991959,1714499440059,-387.48202981,0.0003178,2]
[324991960,1714499440069,-500.0,0.0003178,2]
[324991961,1714499440078,-561.26,0.0003178,2]
[324991962,1714499440087,-500.0,0.0003178,2]
[324991963,1714499440096,-500.0,0.0003178,2]
[324991964,1714499440105,-500.0,0.0003178,2]
[324991965,1714499440114,-500.0,0.0003178,2]
[324991966,1714499440123,-604.18,0.0003178,2]
[324991967,1714499440132,-500.0,0.0003178,2]
[324991968,1714499440142,-549.39878885,0.0003178,2]
[324991969,1714499440151,-500.0,0.0003178,2]
[324991971,1714499440160,-632.74,0.0003178,2]
[324991973,1714499440169,-1322.24,0.0003178,2]
[324991975,1714499440179,-500.0,0.0003178,2]
[324991976,1714499440188,-500.0,0.0003178,2]
[324991977,1714499440197,-500.0,0.0003178,2]
[324991978,1714499440206,-500.0,0.0003178,2]
[324991979,1714499440216,-500.0,0.0003178,2]
[324991980,1714499440226,-500.0,0.0003178,2]
[324991981,1714499440235,-500.0,0.0003178,2]
[324991982,1714499440245,-500.0,0.0003178,2]
[324991983,1714499440254,-750.76,0.0003178,2]
[324991984,1714499440263,-500.0,0.0003178,2]
[324991985,1714499440272,-1438.93,0.0003178,2]
[324991986,1714499440281,-500.0,0.0003178,2]
[324991987,1714499440291,-500.0,0.0003178,2]
[324991988,1714499440300,-500.0,0.0003178,2]
[324991989,1714499440311,-500.0,0.0003178,2]
[324991990,1714499440320,-500.0,0.0003178,2]
[324991991,1714499440329,-500.0,0.0003178,2]
[324991992,1714499440338,-500.0,0.0003178,2]
[324991993,1714499440348,-500.0,0.0003178,2]
[324991994,1714499440358,-634.81599493,0.0003178,2]
[324991995,1714499440368,-500.0,0.0003178,2]
[324991996,1714499440379,-500.0,0.0003178,2]
[324991997,1714499440389,-500.0,0.0003178,2]
[324991998,1714499440398,-540.78,0.0003178,2]
[324991999,1714499440408,-500.0,0.0003178,2]
[324992000,1714499440417,-500.0,0.00031853,2]
[324992001,1714499440426,-44444.0,0.00031954,3]
[324992002,1714499440435,-280.17,0.00032,120]
[324992003,1714499440444,-300.00000001,0.00032,3]
[324992004,1714499440454,-5000.0,0.00032,4]
[324992005,1714499440463,-638.81553849,0.00032,4]
[324992006,1714499440476,-779.35135974,0.00032049,4]
[324992007,1714499440486,-193.75390213,0.00032049,4]
[324992008,1714499440495,-154.79876161,0.00032049,4]
[324992009,1714499440504,-981.37861207,0.00032051,4]
[324992010,1714499440515,-1037.40105808,0.00032052,4]
[324992011,1714499440524,-16627.03892657,0.00032052,2]
[324992012,1714499440533,-312.85134403,0.00032052,4]
[324992013,1714499440543,-196.09497546,0.00032052,4]
[324992014,1714499440552,-500.0,0.00032053,2]
[324992015,1714499440561,-500.0,0.00032053,2]
[324992016,1714499440571,-500.0,0.00032054,2]
[324992017,1714499440582,-500.0,0.00032054,2]
[324992018,1714499440591,-579.96,0.00032054,2]
[324992019,1714499440600,-500.0,0.00032054,2]
[324992020,1714499440609,-500.0,0.00032054,2]
[324992021,1714499440618,-500.0,0.00032054,2]
[324992022,1714499440627,-500.0,0.00032054,2]
[324992023,1714499440638,-500.0,0.00032054,2]
[324992024,1714499440646,-500.0,0.00032054,2]
[324992025,1714499440655,-500.0,0.00032054,2]
[324992026,1714499440664,-500.0,0.00032054,2]
[324992027,1714499440673,-500.0,0.00032054,2]
[324992028,1714499440682,-500.0,0.00032054,2]
[324992029,1714499440691,-500.0,0.00032054,2]
[324992030,1714499440701,-500.0,0.00032054,2]
[324992031,1714499440710,-500.0,0.00032054,2]
[324992032,1714499440719,-500.0,0.00032054,2]
[324992033,1714499440728,-500.0,0.00032054,2]
[324992034,1714499440737,-875.88,0.00032054,2]
[324992035,1714499440746,-500.0,0.00032054,2]
[324992036,1714499440755,-500.0,0.00032054,2]
[324992037,1714499440765,-500.0,0.00032054,2]
[324992038,1714499440773,-626.92,0.00032054,2]
[324992039,1714499440782,-500.0,0.00032054,2]
[324992040,1714499440791,-500.0,0.00032054,2]
[324992041,1714499440801,-500.0,0.00032054,2]
[324992042,1714499440810,-559.69,0.00032054,2]
[324992043,1714499440819,-521.91,0.00032054,2]
[324992044,1714499440829,-500.0,0.00032054,2]
[324992045,1714499440840,-697.52,0.00032054,2]
[324992046,1714499440850,-500.0,0.00032054,2]
[324992047,1714499440859,-500.0,0.00032054,2]
[324992048,1714499440868,-500.0,0.00032054,2]
[324992049,1714499440877,-500.0,0.00032054,2]
[324992050,1714499440887,-500.0,0.00032054,2]
[324992051,1714499440896,-500.0,0.00032054,2]
[324992052,1714499440905,-500.0,0.00032054,2]
[324992053,1714499440915,-230.51609416,0.00032054,2]
[324992054,1714499440923,-500.0,0.00032054,2]
[324992055,1714499440932,-500.0,0.00032054,2]
[324992056,1714499440941,-500.0,0.00032054,2]
[324992057,1714499440952,-500.0,0.00032054,2]
[324992058,1714499440962,-500.0,0.00032054,2]
[324992059,1714499440971,-500.0,0.00032054,2]
[324992060,1714499440981,-500.0,0.00032054,2]
[324992061,1714499440989,-500.0,0.00032054,2]
[324992062,1714499440999,-500.0,0.00032054,2]
[324992063,1714499441007,-500.0,0.00032054,2]
[324992064,1714499441020,-585.25,0.00032054,2]
[324992065,1714499441032,-500.0,0.00032054,2]
[324992066,1714499441041,-500.0,0.00032054,2]
[324992067,1714499441051,-500.0,0.00032054,2]
[324992068,1714499441061,-500.0,0.00032054,2]
[324992069,1714499441070,-500.0,0.00032054,2]
[324992070,1714499441079,-500.0,0.00032054,2]
[324992071,1714499441088,-578.4,0.00032054,2]
[324992072,1714499441097,-501.62222181,0.00032054,2]
[324992073,1714499441107,-500.0,0.00032054,2]
[324992074,1714499441115,-500.0,0.00032054,2]
[324992075,1714499441124,-500.0,0.00032054,2]
[324992076,1714499441135,-500.0,0.00032054,2]
[324992077,1714499441144,-500.0,0.00032054,2]
[324992078,1714499441154,-532.76,0.00032054,2]
[324992079,1714499441163,-500.0,0.00032054,2]
[324992080,1714499441173,-500.0,0.00032054,2]
[324992081,1714499441183,-500.0,0.00032054,2]
[324992082,1714499441193,-500.0,0.00032054,2]
[324992083,1714499441202,-500.0,0.00032054,2]
[324992084,1714499441211,-500.0,0.00032054,2]
[324992085,1714499441220,-709.38,0.00032054,2]
[324992086,1714499441229,-500.0,0.00032054,2]
[324992087,1714499441238,-500.0,0.00032054,2]
[324992088,1714499441248,-500.0,0.00032054,2]
[324992089,1714499441257,-500.0,0.00032054,2]
[324992090,1714499441266,-500.0,0.00032054,2]
[324992091,1714499441275,-500.0,0.00032054,2]
[324992092,1714499441284,-500.0,0.00032054,2]
[324992093,1714499441293,-500.0,0.00032054,2]
[324992094,1714499441302,-500.0,0.00032054,2]
[324992095,1714499441311,-500.0,0.00032054,2]
[324992096,1714499441320,-500.0,0.00032054,2]
[324992097,1714499441329,-500.0,0.00032054,2]
[324992098,1714499441338,-500.0,0.00032054,2]
[324992099,1714499441347,-500.0,0.00032054,2]
[324992100,1714499441356,-500.0,0.00032054,2]
[324992101,1714499441366,-500.0,0.00032054,2]
[324992102,1714499441375,-500.0,0.00032054,2]
[324992103,1714499441385,-500.0,0.00032054,2]
[324992104,1714499441395,-500.0,0.00032054,2]
[324992105,1714499441404,-500.0,0.00032054,2]
[324992106,1714499441565,-500.0,0.00032054,2]
[324992107,1714499441575,-500.0,0.00032054,2]
[324992108,1714499441584,-500.0,0.00032054,2]
[324992109,1714499441594,-1092.87,0.00032054,2]
[324992110,1714499441604,-500.0,0.00032054,2]
[324992111,1714499441613,-500.0,0.00032054,2]
[324992112,1714499441623,-500.0,0.00032054,2]
[324992113,1714499441634,-314.71469119,0.00032054,2]
[324992114,1714499441644,-500.0,0.00032054,2]
[324992115,1714499441654,-500.0,0.00032054,2]
[324992116,1714499441664,-500.0,0.00032054,2]
[324992117,1714499441674,-500.0,0.00032054,2]
[324992118,1714499441683,-500.0,0.00032054,30]
[324992119,1714499441692,-500.0,0.00032054,2]
[324992120,1714499441702,-500.0,0.00032054,2]
[324992121,1714499441711,-500.0,0.00032054,2]
[324992122,1714499441721,-500.0,0.00032054,2]
[324992123,1714499441730,-500.0,0.00032054,2]
[324992124,1714499441740,-500.0,0.00032054,2]
[324992125,1714499441750,-500.0,0.00032054,2]
[324992126,1714499441759,-500.0,0.00032054,2]
[324992127,1714499441767,-645.44512134,0.00032054,2]
[324992128,1714499441777,-500.0,0.00032054,2]
[324992129,1714499441787,-500.0,0.00032054,2]
[324992130,1714499441796,-500.0,0.00032054,2]
[324992131,1714499441805,-634.46210224,0.00032054,2]
[324992132,1714499441815,-560.28,0.00032054,2]
[324992133,1714499441824,-2394.56,0.00032054,2]
[324992134,1714499441834,-500.0,0.00032054,2]
[324992135,1714499441843,-500.0,0.00032054,2]
[324992136,1714499441852,-500.0,0.00032054,2]
[324992137,1714499441862,-500.0,0.00032054,2]
[324992138,1714499441871,-500.0,0.00032054,2]
[324992139,1714499441880,-794.19,0.00032054,2]
[324992140,1714499441889,-659.6,0.00032054,2]
[324992141,1714499441899,-500.0,0.00032054,2]
[324992142,1714499441908,-577.7,0.00032054,2]
[324992143,1714499441917,-500.0,0.00032054,2]
[324992144,1714499441927,-799.86,0.00032054,2]
[324992145,1714499441936,-500.0,0.00032054,2]
[324992146,1714499441945,-500.0,0.00032054,2]
[324992147,1714499441954,-916.77,0.00032054,2]
[324992148,1714499441963,-598.01,0.00032054,2]
[324992149,1714499441972,-500.0,0.00032054,2]
[324992150,1714499441982,-300.0,0.00032054,2]
[324992151,1714499441991,-500.0,0.00032054,2]
[324992152,1714499442000,-500.0,0.00032054,2]
[324992153,1714499442010,-500.0,0.00032054,2]
[324992154,1714499442022,-500.0,0.00032054,2]
[324992155,1714499442032,-609.48,0.00032054,2]
[324992156,1714499442042,-500.0,0.00032054,2]
[324992157,1714499442051,-607.06,0.00032054,2]
[324992158,1714499442060,-500.0,0.00032054,2]
[324992159,1714499442070,-500.0,0.00032054,2]
[324992160,1714499442079,-500.0,0.00032054,2]
[324992161,1714499442088,-500.0,0.00032054,2]
[324992162,1714499442097,-500.0,0.00032054,2]
[324992163,1714499442106,-500.0,0.00032054,2]
[324992164,1714499442115,-2344.77,0.00032054,2]
[324992165,1714499442124,-500.0,0.00032054,2]
[324992166,1714499442134,-500.0,0.00032054,2]
[324992167,1714499442144,-500.0,0.00032054,2]
[324992168,1714499442153,-500.0,0.00032054,2]
[324992169,1714499442162,-500.0,0.00032054,2]
[324992170,1714499442171,-500.0,0.00032054,2]
[324992171,1714499442180,-506.75,0.00032054,2]
[324992172,1714499442190,-500.0,0.00032054,2]
[324992173,1714499442199,-500.0,0.00032054,2]
[324992174,1714499442208,-561.26,0.00032054,2]
[324992175,1714499442218,-500.0,0.00032054,2]
[324992176,1714499442227,-500.0,0.00032054,2]
[324992177,1714499442236,-500.0,0.00032054,2]
[324992178,1714499442245,-500.0,0.00032054,2]
[324992179,1714499442254,-604.18,0.00032054,2]
[324992180,1714499442263,-500.0,0.00032054,2]
[324992181,1714499442272,-500.0,0.00032054,2]
[324992182,1714499442282,-632.74,0.00032054,2]
[324992183,1714499442291,-1322.24,0.00032054,2]
[324992184,1714499442300,-500.0,0.00032054,2]
[324992185,1714499442309,-500.0,0.00032054,2]
[324992186,1714499442318,-500.0,0.00032054,2]
[324992187,1714499442327,-500.0,0.00032054,2]
[324992188,1714499442336,-500.0,0.00032054,2]
[324992189,1714499442346,-500.0,0.00032054,2]
[324992190,1714499442355,-500.0,0.00032054,2]
[324992191,1714499442364,-500.0,0.00032054,2]
[324992192,1714499442373,-750.76,0.00032054,2]
[324992193,1714499442383,-500.0,0.00032054,2]
[324992194,1714499442393,-1438.93,0.00032054,2]
[324992195,1714499442402,-500.0,0.00032054,2]
[324992196,1714499442412,-500.0,0.00032054,2]
[324992197,1714499442421,-500.0,0.00032054,2]
[324992198,1714499442430,-500.0,0.00032054,2]
[324992199,1714499442440,-500.0,0.00032054,2]
[324992200,1714499442449,-500.0,0.00032054,2]
[324992201,1714499442459,-500.0,0.00032054,2]
[324992202,1714499442468,-500.0,0.00032054,2]
[324992203,1714499442482,-500.0,0.00032054,2]
[324992204,1714499442491,-478.87414786,0.00032054,2]
[324992205,1714499442500,-500.0,0.00032054,2]
[324992206,1714499442509,-540.78,0.00032054,2]
[324992208,1714499442519,-1000.0,0.000322,10]
[324992209,1714499442528,-513.96,0.00032327,2]
[324992210,1714499442537,-1971.97453795,0.00032328,7]
[324992212,1714499442547,-500.0,0.00032328,2]
[324992214,1714499442558,-579.96,0.00032328,2]
[324992216,1714499442567,-500.0,0.00032328,2]
[324992218,1714499442577,-500.0,0.00032328,2]
[324992220,1714499442586,-500.0,0.00032328,2]
[324992221,1714499442595,-500.0,0.00032328,2]
[324992223,1714499442604,-500.0,0.00032328,2]
[324992225,1714499442613,-500.0,0.00032328,2]
[324992226,1714499442622,-500.0,0.00032328,2]
[324992227,1714499442631,-500.0,0.00032328,2]
[324992229,1714499442642,-500.0,0.00032328,2]
[324992230,1714499442651,-235.0902185,0.00032328,2]
[324992232,1714499442660,-500.0,0.00032328,2]
[324992234,1714499442670,-500.0,0.00032328,2]
[324992236,1714499442679,-500.0,0.00032328,2]
[324992238,1714499442688,-180.5690511,0.00032328,2]
[324992241,1714499442698,-500.0,0.00032328,2]
[324992243,1714499442707,-875.88,0.00032328,2]
[324992245,1714499442717,-500.0,0.00032328,2]
[324992248,1714499442726,-500.0,0.00032328,2]
[324992251,1714499442735,-626.92,0.00032328,2]
[324992254,1714499442744,-500.0,0.00032328,2]
[324992257,1714499442753,-500.0,0.00032328,2]
[324992260,1714499442762,-559.69,0.00032328,2]
[324992262,1714499442771,-521.91,0.00032328,2]
[324992264,1714499442780,-500.0,0.00032328,2]
[324992267,1714499442789,-697.52,0.00032328,2]
[324992269,1714499442798,-500.0,0.00032328,2]
[324992272,1714499442807,-500.0,0.00032328,2]
[324992276,1714499442817,-500.0,0.00032328,2]
[324992278,1714499442826,-500.0,0.00032328,2]
[324992281,1714499442835,-500.0,0.00032328,2]
[324992284,1714499442844,-500.0,0.00032328,2]
[324992287,1714499442853,-500.0,0.00032328,2]
[324992289,1714499442862,-640.44437509,0.00032328,2]
[324992291,1714499442871,-500.0,0.00032328,2]
[324992292,1714499442880,-500.0,0.00032328,2]
[324992293,1714499442891,-500.0,0.00032328,2]
[324992295,1714499442900,-500.0,0.00032328,2]
[324992296,1714499442909,-500.0,0.00032328,2]
[324992297,1714499442918,-500.0,0.00032328,2]
[324992298,1714499442927,-500.0,0.00032328,2]
[324992299,1714499442937,-585.25,0.00032328,2]
[324992300,1714499442946,-500.0,0.00032328,2]
[324992301,1714499442955,-500.0,0.00032328,2]
[324992302,1714499442964,-500.0,0.00032328,2]
[324992303,1714499442974,-500.0,0.00032328,2]
[324992304,1714499442983,-578.4,0.00032328,2]
[324992305,1714499442992,-500.0,0.00032328,2]
[324992306,1714499443001,-500.0,0.00032328,2]
[324992307,1714499443010,-500.0,0.00032328,2]
[324992308,1714499443022,-532.76,0.00032328,2]
[324992309,1714499443031,-265.62032147,0.00032328,2]
[324992310,1714499443040,-500.0,0.00032328,2]
[324992311,1714499443049,-500.0,0.00032328,2]
[324992312,1714499443058,-500.0,0.00032328,2]
[324992313,1714499443067,-500.0,0.00032328,2]
[324992314,1714499443076,-709.38,0.00032328,2]
[324992315,1714499443086,-500.0,0.00032328,2]
[324992316,1714499443095,-500.0,0.00032328,2]
[324992317,1714499443104,-500.0,0.00032328,2]
[324992318,1714499443113,-500.0,0.00032328,2]
[324992319,1714499443123,-500.0,0.00032328,2]
[324992320,1714499443132,-500.0,0.00032328,2]
[324992321,1714499443142,-323.47452442,0.00032328,2]
[324992322,1714499443151,-500.0,0.00032328,2]
[324992323,1714499443160,-500.0,0.00032328,2]
[324992324,1714499443170,-500.0,0.00032328,2]
[324992325,1714499443179,-500.0,0.00032328,2]
[324992326,1714499443188,-156.55585027,0.00032328,2]
[324992327,1714499443197,-500.0,0.00032328,2]
[324992328,1714499443206,-500.0,0.00032328,2]
[324992329,1714499443215,-500.0,0.00032328,2]
[324992330,1714499443224,-500.0,0.00032328,2]
[324992331,1714499443233,-500.0,0.00032328,2]
[324992332,1714499443242,-500.0,0.00032328,2]
[324992333,1714499443251,-529.40185955,0.00032328,2]
[324992334,1714499443259,-1092.87,0.00032328,2]
[324992335,1714499443269,-434.97621626,0.00032328,2]
[324992336,1714499443277,-500.0,0.00032328,2]
[324992337,1714499443286,-500.0,0.00032328,2]
[324992338,1714499443296,-500.0,0.00032328,2]
[324992339,1714499443305,-500.0,0.00032328,2]
[324992340,1714499443315,-500.0,0.00032328,30]
[324992341,1714499443324,-500.0,0.00032328,2]
[324992342,1714499443333,-500.0,0.00032328,2]
[324992343,1714499443342,-500.0,0.00032328,2]
[324992344,1714499443351,-500.0,0.00032328,2]
[324992345,1714499443361,-500.0,0.00032328,2]
[324992346,1714499443370,-500.0,0.00032328,2]
[324992347,1714499443379,-500.0,0.00032328,2]
[324992348,1714499443389,-500.0,0.00032328,2]
[324992349,1714499443399,-607.37778778,0.00032328,2]
[324992352,1714499443408,-560.28,0.00032328,2]
[324992354,1714499443418,-2394.56,0.00032328,2]
[324992355,1714499443427,-500.0,0.00032328,2]
[324992356,1714499443436,-500.0,0.00032328,2]
[324992357,1714499443445,-500.0,0.00032328,2]
[324992358,1714499443454,-500.0,0.00032328,2]
[324992359,1714499443462,-500.0,0.00032328,2]
[324992360,1714499443472,-794.19,0.00032328,2]
[324992361,1714499443483,-659.6,0.00032328,2]
[324992362,1714499443492,-500.0,0.00032328,2]
[324992363,1714499443501,-577.7,0.00032328,2]
[324992364,1714499443510,-500.0,0.00032328,2]
[324992365,1714499443521,-799.86,0.00032328,2]
[324992366,1714499443530,-500.0,0.00032328,2]
[324992367,1714499443539,-626.48,0.00032328,2]
[324992368,1714499443548,-916.77,0.00032328,2]
[324992369,1714499443560,-598.01,0.00032328,2]
[324992371,1714499443571,-500.0,0.00032328,2]
[324992373,1714499443580,-300.0,0.00032328,2]
[324992375,1714499443589,-540.06781762,0.00032328,2]
[324992377,1714499443598,-500.0,0.00032328,2]
[324992378,1714499443607,-500.0,0.00032328,2]
[324992379,1714499443616,-500.0,0.00032328,2]
[324992380,1714499443625,-609.48,0.00032328,2]
[324992382,1714499443634,-500.0,0.00032328,2]
[324992384,1714499443644,-607.06,0.00032328,2]
[324992386,1714499443653,-500.0,0.00032328,2]
[324992388,1714499443662,-500.0,0.00032328,2]
[324992390,1714499443671,-500.0,0.00032328,2]
[324992392,1714499443680,-343.0,0.00032328,2]
[324992394,1714499443689,-500.0,0.00032328,2]
[324992395,1714499443699,-500.0,0.00032328,2]